{"text_format":"3","workbook":"xlsx","n_sheets":3,"sheets":["survey-data","catch-data","other-data"],"read":"whole","date_system":"1900"}

{"sheet":"survey-data","index":0,"n_rows":16,"n_cols":36,"rows_kept":16}
["Scallop Data Summary"]
["Survey abun/Biom and age/height compisitions"]
[{"$nulls":3},"Year"]
["District/Bed",84,{"$f":"1+B4","v":85},{"$f":"C4+1","v":86},{"$f":"D4+1","v":87},88,89,90,91,92,93,94,95,96,97,98,99,"00","01","02","03","04","05","06","07","08","09","10","11","12","13","14","15","16","17","18"]
["SE District 16"]
["Yakutat"]
["Kayak East"]
["Kayak West"]
["Kamishak North"]
["Kamishak South"]
["Kodiak NE"]
["Kodiak Shelikof"]
["Kodiak SW"]
["AK Peninsula"]
["Dutch Harbor"]
["Bering Sea"]

{"sheet":"catch-data","index":1,"n_rows":20,"n_cols":38,"rows_kept":20}
["Scallop Data Summary"]
["Catch number, round weight, meat weight, bycatch number, weights, and height/age compositions"]
[{"$nulls":4},"Year"]
["District/Bed",83,84,{"$f":"1+B4","v":84},{"$f":"D4+1","v":85},{"$f":"E4+1","v":86},87,88,89,90,91,92,93,94,95,96,97,98,99,"00","01","02","03","04","05","06","07","08","09","10","11","12","13","14","15","16","17","18"]
["SE District 16"]
["Yakutat"]
["Kayak East"]
["Kayak West"]
["Kamishak North"]
["Kamishak South"]
["Kodiak NE"]
["Kodiak Shelikof"]
["Kodiak SW"]
["AK Peninsula"]
["Dutch Harbor"]
["Bering Sea"]
[]
[null,"1. No bycatch abundance/weight and height/age composition data before 1996 (1998 for Kayak)?"]
[null,"2. No height compositions in 1983 and 1984 and no age compositions in 1983 for Kamishak North"]
[null,"3. Bycatch data are available only during 2010-2016 for Kamishak North?"]

{"sheet":"other-data","index":2,"n_rows":16,"n_cols":30,"rows_kept":16}
["Scallop Data Summary"]
[]
[null,null,"Height/weight relationship",{"$nulls":6},"Bycatch handing mortality rate",{"$nulls":7},"Survey catchability",{"$nulls":5},"Meat conversion rates",{"$nulls":5},"Age/weight relationship"]
["District/Bed"]
["SE District 16"]
["Yakutat"]
["Kayak East"]
["Kayak West"]
["Kamishak North",{"$nulls":10},"?",{"$nulls":7},"?"]
["Kamishak South"]
["Kodiak NE"]
["Kodiak Shelikof"]
["Kodiak SW"]
["AK Peninsula"]
["Dutch Harbor"]
["Bering Sea"]